Cogmind - Beta 13 @@@ ROGUE MODE // 2024.04.04 @ 12:27:21 Player: Lancetekk Result: Destroyed by D-53 Grenadier with Mini Grenade Launcher Performance ------------- Evolutions (0) 0 Regions Visited (2) 400 Robots Destroyed (8) 40 Value Destroyed (313) 313 Prototype IDs (0) 0 Alien Tech Used (0) 0 Bonus (0) 0 TOTAL SCORE: 753 Bonus ------- None Cogmind --------- Core Integrity 0/250 Matter 65/400 Energy 77/100 System Corruption 0% Temperature Cool (0) Movement Core (250) Ox4 Location -10/Mines Parts ------- > --- POWER (1) -------- (None) > --- PROPULSION (2) --- (None) > --- UTILITY (2) ------ Medium Storage Unit Medium Matter Pod > --- WEAPON (2) ------- Small Laser > --- INVENTORY (10) --- Improved Hover Unit Improved Hover Unit Medium Matter Pod (0) Medium Matter Pod (0) Tractor Beam EM Pulse Gun Small Laser Rocket Launcher Peak State ------------ > --- POWER ------------ Light Ion Engine > --- PROPULSION ------- Improved Hover Unit Improved Hover Unit > --- UTILITY ---------- Medium Storage Unit Medium Matter Pod > --- WEAPON ----------- Rocket Launcher Rocket Launcher > --- INVENTORY -------- Hover Unit Improved Hover Unit Improved Hover Unit Flight Unit EM Pulse Gun Small Laser Small Laser Assault Rifle Rocket Launcher [Rating: 12] Favorites ----------- Power Light Ion Engine Engine Light Ion Engine Propulsion Improved Hover Unit Leg Aluminum Leg Hover Unit Improved Hover Unit Utility Medium Storage Unit Storage Medium Storage Unit Weapon Rocket Launcher Energy Gun Small Laser Launcher Rocket Launcher Build | -11 -10 -10 ------- Run | Yrd Mat Min Slots Evolved . | . . . Power . | . . . Propulsion . | . . . Utility . | . . . Weapon . | . . . Parts Attached 13 | 5 7 1 Power 1 | 1 . . Engine 1 | 1 . . Core . | . . . Reactor . | . . . Propulsion 4 | 2 2 . Treads . | . . . Leg 2 | 2 . . Wheel . | . . . Hover 2 | . 2 . Flight . | . . . Utility 2 | . 2 . Device . | . . . Storage 2 | . 2 . Processor . | . . . Hackware . | . . . Protection . | . . . Artifact . | . . . Weapon 6 | 2 3 1 Energy Gun 3 | 2 . 1 Energy Cannon . | . . . Ballistic Gun . | . . . Ballistic Cannon . | . . . Launcher 3 | . 3 . Special Weapon . | . . . Impact Weapon . | . . . Slashing Weapon . | . . . Piercing Weapon . | . . . Special Melee Weapon . | . . . Unidentified Prototypes . | . . . Parts Lost 6 | . 1 5 Power 1 | . . 1 Propulsion 2 | . . 2 Utility . | . . . Weapon 3 | . 1 2 Highest Loss Streak 5 | . 1 5 To Critical Strikes . | . . . Average Slot Usage (%) 84 | . 84 85 Engine 13 | . 14 11 Hover 26 | . 27 22 Storage 16 | . 13 28 Energy Gun 1 | . 1 . Launcher 25 | . 26 22 Naked Turns . | . . . Heaviest Build 23 | 5 23 23 Greatest Support 20 | 20 20 14 Greatest Overweight (x) 5 | . 1 5 Average Overweight (x) . | . . 1 Largest Inventory Capacity 10 | 5 10 10 Average Capacity 7 | 5 8 10 Most Carried 10 | 5 10 9 Average Carried 6 | 2 7 8 Final Capacity 10 | 5 10 10 Final Carried 9 | 3 9 8 Class Distribution -------------------- 100% | Mutant Dominant Class ---------------- Mutant | -10/Materials Mutant | -10/Mines Resources | -11 -10 -10 ----------- Run | Yrd Mat Min Matter Collected 261 | 250 11 . Remotely . | . . . Salvage Created 169 | 45 89 35 Parts 6 | . 5 1 Haulers Intercepted . | . . . Recyclers Shooed 1 | . . 1 Parts Field Recycled . | . . . Retrieved Matter . | . . . Parts Self-Destructed . | . . . Prevented . | . . . Kills | -11 -10 -10 ------- Run | Yrd Mat Min Combat Hostiles Destroyed 7 | 1 4 2 Guns 1 | 1 . . AOE 6 | . 4 2 Classes Destroyed 2 | 1 1 . Watcher 1 | . 1 . Grunt 7 | 1 4 2 Best Kill Streak 3 | 1 3 2 Combat Bots Only 3 | 1 3 2 Max Kills in Single Turn 3 | 1 3 1 Gunslinging . | . . . Exploded 3 | . 3 1 Melee . | . . . Uniques/NPCs Destroyed . | . . . Combat | -11 -10 -10 -------- Run | Yrd Mat Min Hostile Shots Fired 27 | 3 5 19 Missed 4 | 1 2 1 Damage Taken 730 | 24 95 611 Core 263 | . 8 255 Absorbed by Shields . | . . . Core Remaining (%) 100 | 100 . . Volleys Fired 16 | 2 6 8 Largest 2 | 2 2 2 Hottest 80 | 80 66 66 Shots Fired 30 | 4 12 14 Gun 5 | 4 . 1 Cannon . | . . . Launcher 25 | . 12 13 Special . | . . . Kinetic . | . . . Thermal 5 | 4 . 1 Explosive 25 | . 12 13 Electromagnetic . | . . . Robot Hit Streak 4 | 3 2 4 Robot Miss Streak 3 | 1 1 3 Penetration Max . | . . . Secondary Targets . | . . . Shots Hit Robots 11 | 3 3 5 Core Hits 18 | 2 9 7 Critical Kills . | . . . Critical Parts Destroyed . | . . . Critical Strikes . | . . . Melee Attacks . | . . . Impact . | . . . Slashing . | . . . Piercing . | . . . Sneak Attacks . | . . . Combat Hostiles . | . . . Follow-up Attacks . | . . . Damage Inflicted 891 | 36 509 346 Guns 36 | 36 . . Cannons . | . . . Explosions 854 | . 508 346 Melee . | . . . Ramming 1 | . 1 . Kinetic . | . . . Thermal 36 | 36 . . Explosive 854 | . 508 346 Electromagnetic . | . . . Impact . | . . . Slashing . | . . . Piercing . | . . . Highest Corruption . | . . . Average Corruption . | . . . Corruption Purged . | . . . Corruption Blocked . | . . . Overload Shots . | . . . Overflow Damage 44 | . 13 31 Projectiles . | . . . Explosions 44 | . 13 31 Melee . | . . . Knockbacks . | . . . Impact . | . . . Kinetic . | . . . Secondary . | . . . Self-Inflicted Damage 49 | . 49 . Shots 1 | . 1 . Rammed 1 | . 1 . Targets Rammed 1 | . 1 . Kicked . | . . . Crushed . | . . . Highest Temperature 72 | 42 72 63 Average Temperature 28 | 22 31 26 Received Heat Transfer 63 | 12 24 27 Siege Activations . | . . . Robots Corrupted . | . . . Combat Hostiles . | . . . Parts Fried . | . . . Impact Corruptions . | . . . Robots Melted . | . . . Combat Hostiles . | . . . Parts Melted . | . . . Heat Transferred 75 | 75 . . Parts Sabotaged . | . . . Parts Stolen . | . . . Parts Stripped . | . . . Power Chain Reactions . | . . . Alert | -11 -10 -10 ------- Run | Yrd Mat Min Peak Influence 244 | 20 244 201 Initial 94 | . 13 94 Average 110 | 11 169 177 Maximum Alert Level 1 | . 1 1 Low Security (%) 80 | 100 64 95 Level 1 19 | . 35 4 Level 2 . | . . . Level 3 . | . . . Level 4 . | . . . Level 5 . | . . . High Security . | . . . Max Security . | . . . Squads Dispatched 2 | . 2 . Investigation 2 | . 2 . Extermination . | . . . Reinforcement . | . . . Assault . | . . . Garrison . | . . . Intercept . | . . . Searches Triggered . | . . . Construction Impeded . | . . . Haulers Reinforced . | . . . Active Scanning Responses . | . . . Cargo Convoy Interrupts . | . . . Stealth | -11 -10 -10 --------- Run | Yrd Mat Min Distress Signals . | . . . Communications Jammed . | . . . Distress Signals . | . . . Times Spotted 10 | 1 6 3 Peak Tracking Total 4 | 1 4 2 Tactical Retreats 1 | . 1 . Traps | -11 -10 -10 ------- Run | Yrd Mat Min Traps Triggered 1 | . 1 . Indirectly . | . . . Trap Hack Attempts . | . . . Triggered . | . . . Disarmed . | . . . Reprogrammed . | . . . Reused . | . . . Traps Extracted . | . . . Installed . | . . . Triggered . | . . . Machines | -11 -10 -10 ---------- Run | Yrd Mat Min Machines Disabled 2 | . 2 . Max in Single Turn 2 | . 2 . Machines Repaired . | . . . Machines Dismantled . | . . . Machines Sabotaged . | . . . Overloaded Fab Kills . | . . . Hacking | -11 -10 -10 --------- Run | Yrd Mat Min Machines Accessed 1 | . 1 . Terminals . | . . . Fabricators . | . . . Repair Stations . | . . . Recycling Units 1 | . 1 . Scanalyzers . | . . . Garrison Access . | . . . Total Hacks 14 | . 14 . Successful 11 | . 11 . Failed 3 | . 3 . Catastrophic . | . . . Database Lockouts . | . . . Manual . | . . . Terminals . | . . . Fabricators . | . . . Repair Stations . | . . . Recycling Units 14 | . 14 . Scanalyzers . | . . . Garrison Access . | . . . Terminal Hacks . | . . . Fabricator Hacks . | . . . Repair Station Hacks . | . . . Recycling Unit Hacks 11 | . 11 . Recycle Component 3 | . 3 . Process 4 | . 4 . Report Inventory 3 | . 3 . Retrieve Matter 1 | . 1 . Scanalyzer . | . . . Garrison Access Hacks . | . . . Unauthorized Hacks . | . . . Terminals . | . . . Fabricators . | . . . Repair Stations . | . . . Recycling Units . | . . . Scanalyzers . | . . . Garrison Access . | . . . Data Cores Recovered . | . . . Used . | . . . Hacking Detections 1 | . 1 . Full Trace Events 1 | . 1 . Feedback Events . | . . . Feedback Blocked . | . . . Robot Schematics Acquired . | . . . Robots Built . | . . . Authchips . | . . . Time . | . . . Total Robot Build Rating . | . . . Part Schematics Acquired . | . . . Parts Built . | . . . Authchips . | . . . Time . | . . . Total Part Build Rating . | . . . Parts Repaired . | . . . Time . | . . . Parts Recycled 3 | . 3 . Recycled Matter 74 | . 74 . Retrieved Matter 74 | . 74 . Retrieved Components . | . . . Parts Scanalyzed . | . . . Part Schematics Acquired . | . . . Parts Damaged . | . . . Bothacking | -11 -10 -10 ------------ Run | Yrd Mat Min Used RIF Installer . | . . . Robots Hacked . | . . . Non-combat . | . . . Combat . | . . . Robot Hacks Applied . | . . . Relay Couplers Released . | . . . Fabnet Peak Effective % . | . . . Robots Rewired . | . . . Allies Hacked . | . . . Hacks Repelled . | . . . Allies | -11 -10 -10 -------- Run | Yrd Mat Min Total Allies . | . . . Largest Group . | . . . Highest-Rated Group . | . . . Highest-Rated Ally . | . . . Total Orders . | . . . Ally Attacks . | . . . Total Damage . | . . . Kills . | . . . Allies Corrupted . | . . . Allies Melted . | . . . Intel | -11 -10 -10 ------- Run | Yrd Mat Min Robot Analysis Total . | . . . Derelict Logs Recovered . | . . . Drone Launches . | . . . Drone Recoveries . | . . . Exploration | -11 -10 -10 ------------- Run | Yrd Mat Min Turns Passed 450 | 169 239 42 Spaces Moved 328 | 127 185 16 Core 19 | 18 . 1 Treads . | . . . Legs 114 | 109 5 . Wheels . | . . . Hover 195 | . 180 15 Flight . | . . . Fastest Speed 50 | 50 56 116 Average Speed 105 | 110 100 127 Slowest Speed 300 | 120 120 300 Overloaded Moves . | . . . Propulsion Burnouts . | . . . Robots Hopped . | . . . Cave-ins Triggered . | . . . Exploration Rate (%) 16 | 8 31 10 Regions Visited 2 Branch Regions 1 Pre-discovered Areas . | . . . Known Exits Taken . | . . . Unknown Exits Taken 2 | 1 1 . Scrap Searched . | . . . Spaces Dug 26 | . 26 . Terrain Destroyed 133 | . 59 74 Melee . | . . . Projectile . | . . . AOE 133 | . 59 74 Terrain Rammed . | . . . Walls Destroyed . | . . . Machines Disabled . | . . . Actions | -11 -10 -10 --------- Run | Yrd Mat Min Total 404 | 152 227 25 Wait 16 | 11 5 . Move 326 | 126 184 16 Hop . | . . . Pick Up 24 | 8 16 . Fast Attach 4 | . 4 . Attach 7 | 5 1 1 Detach . | . . . Swap 2 | . 2 . Drop 8 | . 8 . Fire 16 | 2 6 8 Melee . | . . . Ram 1 | . 1 . Kick . | . . . Crush . | . . . Escape Stasis . | . . . Rewire . | . . . Trap . | . . . Miscellaneous . | . . . Route ------- -11/Scrapyard -10/Materials -10/Mines History --------- Turn | Location | Event 2 | -11/Scrapyard | Met Revision 17 64 | -11/Scrapyard | Discovered new exit (range 8) 170 | -11/Scrapyard | Entered Materials 310 | -10/Materials | Build established: Mutant 377 | -10/Materials | Discovered new exit (range 11) 409 | -10/Materials | Entered Mines 430 | -10/Mines | Assembled infested the area 446 | -10/Mines | Core integrity fell below 50% 450 | -10/Mines | Core integrity fell below 20% 451 | -10/Mines | Destroyed by D-53 Grenadier with Mini Grenade Launcher Last Messages --------------- G-34 Mercenary destroyed. Destroyed Aluminum Leg. G-47 Trooper destroyed. ALERT: Infestation in the mines, dispatching Demolisher response squad. The unstable cave ceiling collapses. C-30 ARC bursts open, deploying its payload. D-53 Grenadier unfolds itself. Destroyed Lgt. Ion Engine. Imp. Hover Unit destroyed. Lgt. Ion Engine destroyed. The unstable cave ceiling collapses. R-06 Scavenger destroyed. Imp. Hover Unit destroyed. Rocket Launcher destroyed. G-34 Mercenary destroyed. The unstable cave ceiling collapses. Rocket Launcher destroyed. U-05 Engineer lays Concrete. The unstable cave ceiling collapses. Map ----- +----------------------------------------------------+ | ?????????????????????????????????????????????????? | | ?????????????????????????????????????????????????? | | ?????????????????????????????????????????????????? | | ?????????????????????????????????????????????????? | | ?????????????????????????????????????????????????? | | ?????????????????????????????????????????????????? | | ?????????????????????????????????????????????????? | | ?????????????????????????????????????????????????? | | ?????????????????????????????????????????????????? | | ?????????????????????????????????????????????????? | | ?????????????????????????????????????????????????? | | ?????????????????????????????????????????????????? | | ?????????????????????????????????????????????????? | | ????????????????????#????????????????????????????? | | ????????????????????;????????????????????????????? | | ????????????????????# ???????????????????????????? | | ???????????????????## ???????????????????????????? | | ???????????????????# #####??????????????????????? | | ???????????????????? ##?????????? ?????????? | | ????????????????????# ##???????? ???????????? | | ????????????????????## ######## ??? ????????? | | ????????????????????# #????????? | | ?????????????##%##### # ## #?????????? | | ?????????????? =[ # u #?????????? | | ????????????????????# # #???????? | | ????????????????????# @ #???????? | | ????????????????????# #???????? | | ????????????????????# #??????? | | ????????????????????## ## ??????? | | ????????????????????# d # # ??????? | | ???????????????????# % # # ## # ###???????? | | ?????????????????? d ###??##??##?????????? | | ????????????????? #???????????????????? | | ???????????????? ?#???????????????????? | | ???????????????### ?????????????????????? | | ?????????????????### #????????????????????? | | ???????????????????# # #?????????????????????? | | ????????????????????# ?#??????????????????????? | | | | | | | | | | | | | | | | | | | | | | | | | +----------------------------------------------------+ Best States ------------- Heat Dissipation 25 Energy Generation 10 Energy Capacity 125 Matter Stores 300 Matter Capacity 400 Sight Range 16 Terrain Scan Density 10 Evasion (%) 55 Item Schematics ----------------- None Robot Schematics ------------------ None Fabricated ------------ Nothing Alien Tech Used ----------------- None Achievements -------------- None Challenges ------------ None Game ------ Seed SubatomicSensorScreen Manual? 0 Play Time 00:14:10 Cumulative 0.8 hours Start 2024.04.04 @ 12:13:24 End 2024.04.04 @ 12:27:21 Sessions 1 Manual Loads 0 Difficulty Rogue Special Mode None Game No. 2 Rogue 2 Adventurer 0 Explorer 0 Win Type - Total 0 Types 0/0/0/0/0/0/0/0/0 Lore% 0 Gallery% 2 Achievement% 2 Wizard Run 0 Options --------- Layout 1 ASCII 0 Keyboard 0 Movement Mouse Keybinds 0 Fullscreen 1 Font 48/SmallcapsGlow++ Map View 50x35 Zoom Use 0% Tactical HUD 0 Map Filters NONE Filters NONE Steam 1 RUN: f2eecf96-ccca-4fa1-83cf-31c1f8f9927a